bitfinex/quotes_BTCUSD_20250723
["timestamp","ask_amount","ask_price","bid_price","bid_amount"]
[1753244900026,0.00941403,118840.0,118830.0,1.36325503]
[1753244900234,0.001,118840.0,118830.0,1.36325503]
[1753244901325,0.00941417,118840.0,118830.0,0.72608797]
[1753244901530,0.00941417,118840.0,118830.0,1.36325503]
[1753244901732,0.01782856,118840.0,118830.0,1.36325503]
[1753244901957,0.00941417,118840.0,118830.0,1.36325503]
[1753244902167,0.01782849,118840.0,118830.0,1.36325503]
[1753244902365,0.00941417,118840.0,118830.0,1.36325503]
[1753244904028,0.0094141,118840.0,118830.0,1.36325503]
[1753244904404,0.001,118840.0,118830.0,1.36325503]
[1753244907332,0.00941403,118840.0,118830.0,1.36325503]
[1753244907569,0.001,118840.0,118830.0,1.36325503]
[1753244908736,0.0094141,118840.0,118830.0,1.36325503]
[1753244911013,0.01782842,118840.0,118830.0,1.36325503]
[1753244911294,0.01782835,118840.0,118830.0,1.36325503]
[1753244911454,0.01782835,118840.0,118830.0,1.56513503]
[1753244911678,0.01782827,118840.0,118830.0,1.56513503]
[1753244912636,0.0094141,118840.0,118830.0,1.56513503]
[1753244912799,0.001,118840.0,118830.0,1.56513503]
[1753244912988,0.0094141,118840.0,118830.0,1.56513503]
[1753244914098,0.01782835,118840.0,118830.0,1.56513503]
[1753244914676,0.0094141,118840.0,118830.0,1.56513503]
[1753244915955,0.00941403,118840.0,118830.0,1.56513503]
[1753244916571,0.001,118840.0,118830.0,1.56513503]
[1753244916778,0.00941403,118840.0,118830.0,1.56513503]
[1753244918839,0.0178282,118840.0,118830.0,1.56513503]
[1753244919628,0.00941403,118840.0,118830.0,1.56513503]
[1753244919842,0.01782828,118840.0,118830.0,1.56513503]
[1753244920561,0.0178282,118840.0,118830.0,1.56513503]
[1753244920781,0.00941403,118840.0,118830.0,1.56513503]
[1753244921063,0.01782813,118840.0,118830.0,1.56513503]
[1753244921305,0.03465669,118840.0,118830.0,1.56513503]
[1753244921557,0.03465662,118840.0,118830.0,1.56513503]
[1753244921775,0.0262423,118840.0,118830.0,1.56513503]
[1753244923498,0.01782813,118840.0,118830.0,1.56513503]
[1753244925252,0.00941403,118840.0,118830.0,1.56513503]
[1753244925463,0.001,118840.0,118830.0,1.56513503]
[1753244928439,0.0094141,118840.0,118830.0,1.56513503]
[1753244928720,0.001,118840.0,118830.0,1.56513503]
[1753244928999,0.0094141,118840.0,118830.0,1.56513503]
[1753244929514,0.01782835,118840.0,118830.0,1.54283503]
[1753244929983,0.00941403,118840.0,118830.0,1.54283503]
[1753244930624,0.0178282,118840.0,118830.0,1.56293503]
[1753244931961,0.0178282,118840.0,118830.0,0.92576797]
[1753244932176,0.0178282,118840.0,118830.0,1.56293503]
[1753244932823,0.02624252,118840.0,118830.0,1.56293503]
[1753244933036,0.0178282,118840.0,118830.0,1.56293503]
[1753244933384,0.0178282,118840.0,118830.0,1.54283503]
[1753244934466,0.01782813,118840.0,118830.0,1.54283503]
[1753244934772,0.01782813,118840.0,118830.0,1.56463503]
[1753244935826,0.02624238,118840.0,118830.0,1.56463503]
[1753244936372,0.01782813,118840.0,118830.0,1.56463503]
[1753244936887,0.02624238,118840.0,118830.0,1.56463503]
[1753244937090,0.0262423,118840.0,118830.0,1.56463503]
[1753244937297,0.0262423,118840.0,118830.0,1.59042792]
[1753244938055,0.0262423,118840.0,118830.0,0.95326086]
[1753244938264,0.0262423,118840.0,118830.0,1.59042792]
[1753244938914,0.00941403,118840.0,118830.0,1.59042792]
[1753244940828,0.01782813,118840.0,118830.0,1.59042792]
[1753244941719,0.00941403,118840.0,118830.0,1.59042792]
[1753244942453,0.001,118840.0,118830.0,1.59042792]
[1753244942676,0.0094141,118840.0,118830.0,1.59042792]
[1753244943089,0.01782842,118840.0,118830.0,1.56862792]
[1753244943514,0.02624281,118840.0,118830.0,1.56862792]
[1753244943861,0.01782842,118840.0,118830.0,1.56862792]
[1753244945650,0.02624288,118840.0,118830.0,1.56862792]
[1753244945833,0.02624288,118840.0,118830.0,2.10862792]
[1753244946273,0.03465741,118840.0,118830.0,1.97950792]
[1753244946525,0.03465741,118840.0,118830.0,2.08496792]
[1753244948926,0.01782842,118840.0,118830.0,2.08496792]
[1753244950733,0.01782842,118840.0,118830.0,1.44780086]
[1753244950975,0.01782842,118840.0,118830.0,2.08496792]
[1753244953042,0.02624288,118840.0,118830.0,2.08496792]
[1753244953295,0.01782842,118840.0,118830.0,2.08496792]
[1753244953970,0.02624281,118840.0,118830.0,2.08496792]
[1753244954500,0.02624281,118840.0,118830.0,2.10626792]
[1753244959779,0.21778631,118840.0,118830.0,1.95600792]
[1753244959995,0.06632194,118840.0,118830.0,2.08492792]
[1753244960217,0.23461601,118840.0,118830.0,2.08492792]
[1753244960533,0.21331601,118840.0,118830.0,2.08492792]
[1753244961193,0.03660784,118840.0,118830.0,2.08492792]
[1753244961728,0.01782871,118840.0,118830.0,2.08492792]
[1753244961933,0.02624317,118840.0,118830.0,2.10652792]
[1753244962145,0.21247942,118850.0,118840.0,1.01770553]
[1753244962354,0.21442942,118850.0,118840.0,1.46520906]
[1753244963454,0.21442942,118850.0,118840.0,1.46535679]
[1753244963909,0.21442942,118850.0,118840.0,1.47377146]
[1753244964408,0.21542942,118850.0,118840.0,1.47577146]
[1753244964654,0.21542942,118850.0,118840.0,0.85555976]
[1753244964910,0.21542942,118850.0,118840.0,1.30306329]
[1753244965120,0.21542942,118850.0,118840.0,1.46835679]
[1753244965313,0.21542942,118850.0,118840.0,1.47677146]
[1753244965533,0.21542942,118850.0,118840.0,1.30006329]
[1753244966557,0.23501844,118850.0,118840.0,0.98147976]
[1753244966918,0.23501844,118850.0,118840.0,1.30006329]
[1753244967303,0.23287844,118850.0,118840.0,1.30006329]
[1753244971582,0.23287844,118850.0,118840.0,0.98147976]
[1753244971803,0.23287844,118850.0,118840.0,1.30006329]
[1753244973256,0.31735574,118850.0,118840.0,0.98147976]
[1753244976230,0.31735574,118850.0,118840.0,1.30006329]
[1753244977621,0.31735574,118850.0,118840.0,0.98147976]
[1753244977845,0.31735574,118850.0,118840.0,1.30006329]
[1753244979830,0.31735574,118850.0,118840.0,0.98147976]
[1753244980043,0.31735574,118850.0,118840.0,1.30006329]
[1753244983372,0.29725574,118850.0,118840.0,1.30006329]
[1753244984203,0.29725574,118850.0,118840.0,1.30306329]
[1753244985864,0.27615574,118850.0,118840.0,1.30509329]
[1753244996170,0.27615574,118850.0,118840.0,0.98650976]
[1753244996386,0.27615574,118850.0,118840.0,1.30509329]
[1753244999143,0.27420574,118850.0,118840.0,1.30509329]
[1753245000204,0.27420574,118850.0,118840.0,0.98650976]
[1753245000384,0.27420574,118850.0,118840.0,1.30509329]
[1753245000523,0.18972836,118850.0,118840.0,1.49518679]
[1753245000739,0.004,118850.0,118840.0,1.54222995]
[1753245000973,0.004,118850.0,118840.0,1.94529078]
[1753245001191,0.004,118850.0,118840.0,1.62670725]
[1753245002747,0.18910635,118850.0,118840.0,1.48937308]
[1753245002962,0.03765451,118850.0,118840.0,1.54210995]
[1753245003175,0.20593434,118850.0,118840.0,1.53369578]
[1753245003406,0.18910705,118850.0,118840.0,0.90118976]
[1753245003620,0.19108705,118850.0,118840.0,0.98638976]
[1753245003839,0.18910705,118850.0,118840.0,1.50218146]
[1753245004026,0.18910705,118850.0,118840.0,1.32547329]
[1753245005328,0.18910705,118850.0,118840.0,1.30497329]
[1753245009932,0.18910705,118850.0,118840.0,0.98638976]
[1753245010142,0.18910705,118850.0,118840.0,1.30497329]
[1753245010815,0.18910705,118850.0,118840.0,0.98638976]
[1753245011275,0.18910705,118850.0,118840.0,1.30497329]
[1753245011986,0.18910705,118850.0,118840.0,0.98638976]
[1753245012191,0.18910705,118850.0,118840.0,1.32607329]
[1753245013864,0.18910705,118850.0,118840.0,1.00748976]
[1753245014074,0.18910705,118850.0,118840.0,1.32607329]
[1753245015142,0.20853607,118850.0,118840.0,0.87868976]
[1753245015355,0.20853607,118850.0,118840.0,1.17617329]
[1753245015565,0.20853607,118850.0,118840.0,0.98634976]
[1753245017920,0.20853607,118850.0,118840.0,1.30493329]
[1753245019321,0.20655607,118850.0,118840.0,1.30493329]
[1753245025767,0.20655607,118850.0,118840.0,0.98634976]
[1753245026409,0.20851607,118850.0,118840.0,0.98634976]
[1753245028247,0.20851607,118850.0,118840.0,0.98131976]
[1753245028427,0.25101607,118850.0,118840.0,0.98131976]
[1753245028590,0.22891607,118850.0,118840.0,0.98131976]
[1753245028807,0.20851607,118850.0,118840.0,0.98131976]
[1753245029009,0.20851607,118850.0,118840.0,0.98441976]
[1753245029185,0.20851607,118850.0,118840.0,0.98645976]
[1753245034426,0.20655607,118850.0,118840.0,0.98645976]
[1753245035115,0.20851607,118850.0,118840.0,0.98645976]
[1753245040624,0.20655607,118850.0,118840.0,0.98645976]
[1753245044137,0.20655607,118850.0,118840.0,1.30504329]
[1753245044867,0.20655607,118850.0,118840.0,0.98645976]
[1753245045117,0.20655607,118850.0,118840.0,1.30504329]
[1753245048153,0.20655607,118850.0,118840.0,0.98645976]
[1753245050276,0.20655607,118850.0,118840.0,1.00805976]
[1753245050979,0.20655607,118850.0,118840.0,1.32664329]
[1753245051947,0.20655607,118850.0,118840.0,1.34704329]
[1753245057245,0.004,118850.0,118840.0,1.51533679]
[1753245057472,0.02082708,118850.0,118840.0,1.54057995]
[1753245057675,0.01241347,118850.0,118840.0,1.54057995]
[1753245057906,0.02082694,118850.0,118840.0,1.54057995]
[1753245058136,0.004,118850.0,118840.0,1.54057995]
[1753245060380,0.004,118850.0,118840.0,1.22199642]
[1753245060584,0.004,118850.0,118840.0,1.54057995]
[1753245063325,0.004,118850.0,118840.0,1.74245995]
[1753245065525,0.004,118850.0,118840.0,1.75105649]
[1753245069425,0.01241347,118850.0,118840.0,1.75105649]
[1753245069872,0.0124134,118850.0,118840.0,1.75105649]
[1753245071629,0.02082687,118850.0,118840.0,1.75105649]
[1753245072161,0.0124134,118850.0,118840.0,1.75105649]
[1753245073999,0.004,118850.0,118840.0,1.75105649]
[1753245074186,0.0124134,118850.0,118840.0,1.75105649]
[1753245077144,0.02082694,118850.0,118840.0,1.75105649]
[1753245077282,0.0124134,118850.0,118840.0,1.75105649]
[1753245078945,0.004,118850.0,118840.0,1.75105649]
[1753245084992,0.004,118850.0,118840.0,1.62229649]
[1753245085211,0.004,118850.0,118840.0,1.75085649]
[1753245085618,0.18910621,118850.0,118840.0,1.42875983]
[1753245085820,0.21048677,118850.0,118840.0,1.51509796]
[1753245086023,0.21048677,118850.0,118840.0,1.67825139]
[1753245086221,0.19950073,118850.0,118840.0,1.68140139]
[1753245086521,0.19950073,118850.0,118840.0,1.68356139]
[1753245086791,0.18910635,118850.0,118840.0,1.70041578]
[1753245086996,0.20593406,118850.0,118840.0,1.70041578]
[1753245087171,0.19752066,118850.0,118840.0,1.70041578]
[1753245087305,0.19752066,118850.0,118840.0,1.72021578]
[1753245087509,0.19752066,118850.0,118840.0,1.7286301]
[1753245088210,0.20593462,118850.0,118840.0,1.73704435]
[1753245088425,0.20593462,118850.0,118840.0,1.7286301]
[1753245088849,0.20593462,118850.0,118840.0,1.72021578]
[1753245089058,0.19752101,118850.0,118840.0,1.72021578]
[1753245089847,0.19752101,118850.0,118840.0,1.40163225]
[1753245090006,0.19752101,118850.0,118840.0,1.72021578]
[1753245090653,0.19752101,118850.0,118840.0,1.7286301]
[1753245092619,0.19752101,118850.0,118840.0,1.70041578]
[1753245092803,0.19752101,118850.0,118840.0,1.69200139]
[1753245093016,0.18910719,118850.0,118840.0,1.70041592]
[1753245093743,0.1826733,118850.0,118840.0,1.50685329]
[1753245093949,0.2022733,118850.0,118840.0,1.67514679]
[1753245094155,0.2022733,118850.0,118840.0,1.67298679]
[1753245094402,0.2022733,118850.0,118840.0,1.50469329]
[1753245094782,0.2022733,118850.0,118840.0,1.68140146]
[1753245094933,0.2022733,118850.0,118840.0,1.69197606]
[1753245095135,0.1826733,118850.0,118840.0,1.70039052]
[1753245097061,0.19108705,118850.0,118840.0,1.70880477]
[1753245097277,0.18910705,118850.0,118840.0,1.70880477]
[1753245097486,0.02924097,118850.0,118840.0,1.73711894]
[1753245097705,0.02924097,118850.0,118840.0,1.75611894]
[1753245098675,0.19752031,118850.0,118840.0,1.75611894]
[1753245098915,0.21434753,118850.0,118840.0,1.75607894]
[1753245099137,0.04606819,118850.0,118840.0,1.75607894]
[1753245100355,0.21434753,118850.0,118840.0,1.73707894]
[1753245101519,0.21434816,118850.0,118840.0,1.73707894]
[1753245102296,0.20593462,118850.0,118840.0,1.72025052]
[1753245102529,0.19752101,118850.0,118840.0,1.70035052]
[1753245102732,0.1806933,118850.0,118840.0,1.37335253]
[1753245102933,0.17425934,118850.0,118840.0,1.69193606]
[1753245103174,0.17425934,118850.0,118840.0,1.70035052]
[1753245103657,0.17227934,118850.0,118840.0,1.70035052]
[1753245104272,0.17227934,118850.0,118840.0,1.70876491]
[1753245105320,0.17227934,118850.0,118840.0,1.71717923]
[1753245106077,0.18069316,118850.0,118840.0,1.71717923]
[1753245106343,0.02082743,118850.0,118840.0,1.71717873]
[1753245106529,0.02082743,118850.0,118840.0,1.73687873]
[1753245107220,0.02924132,118850.0,118840.0,1.73687873]
[1753245107441,0.20593462,118850.0,118840.0,1.73687873]
[1753245107864,0.03765528,118850.0,118840.0,1.73687873]
[1753245108744,0.20593462,118850.0,118840.0,1.73687873]
[1753245108954,0.20593462,118850.0,118840.0,1.72846456]
[1753245109168,0.19752101,118850.0,118840.0,1.71163585]
[1753245109381,0.19752101,118850.0,118840.0,1.69193585]
[1753245109587,0.19752101,118850.0,118840.0,1.70035024]
[1753245111102,0.18910719,118850.0,118840.0,1.37335232]
[1753245111319,0.18910719,118850.0,118840.0,1.69193585]
[1753245111479,0.18910719,118850.0,118840.0,1.36157585]
[1753245111689,0.18910719,118850.0,118840.0,1.69193585]
[1753245111894,0.18910719,118850.0,118840.0,1.70035017]
[1753245113483,0.19108719,118850.0,118840.0,1.69193592]
[1753245114409,0.18910719,118850.0,118840.0,1.70035031]
[1753245114629,0.18910719,118850.0,118840.0,1.70876463]
[1753245115894,0.18910719,118850.0,118840.0,1.71717888]
[1753245116183,0.02082757,118850.0,118840.0,1.73627845]
[1753245116383,0.02082715,118850.0,118840.0,1.73627845]
[1753245116589,0.02924097,118850.0,118840.0,1.40591845]
[1753245116798,0.02924097,118850.0,118840.0,1.73627845]
[1753245117925,0.19752031,118850.0,118840.0,1.73627845]
[1753245118133,0.2059342,118850.0,118840.0,1.73627845]
[1753245118333,0.03765486,118850.0,118840.0,1.73627845]
[1753245119287,0.03013486,118850.0,118840.0,1.73627845]
[1753245119843,0.02172097,118850.0,118840.0,1.73627845]
[1753245122824,0.01330715,118850.0,118840.0,1.73627845]
[1753245123038,0.0217209,118850.0,118840.0,1.73627845]
[1753245123999,0.03013472,118850.0,118840.0,1.73627845]
[1753245129238,0.20682802,118850.0,118840.0,1.73627845]
[1753245131430,0.03854868,118850.0,118840.0,1.73627845]
[1753245132127,0.03013472,118850.0,118840.0,1.73627845]
[1753245134321,0.0217209,118850.0,118840.0,1.73627845]
[1753245134527,0.03013472,118850.0,118840.0,1.73627845]
[1753245134939,0.19841406,118850.0,118840.0,1.59097003]
[1753245135124,0.03211472,118850.0,118840.0,1.7278242]
[1753245135451,0.19841406,118850.0,118840.0,1.7278242]
[1753245135946,0.19807918,118850.0,118840.0,1.7278242]
[1753245136359,0.20649307,118850.0,118840.0,1.7278242]
[1753245136511,0.20649307,118850.0,118840.0,1.71941003]
[1753245136716,0.20649356,118850.0,118840.0,1.71941003]
[1753245137371,0.03821422,118850.0,118840.0,1.73623845]
[1753245138300,0.02980026,118850.0,118840.0,1.73623845]
[1753245139473,0.02138637,118850.0,118840.0,1.73623845]
[1753245140310,0.01297255,118850.0,118840.0,1.73623845]
[1753245140816,0.01297227,118850.0,118840.0,1.73623845]
[1753245140955,0.02138609,118850.0,118840.0,1.73623845]
[1753245141175,0.01297227,118850.0,118840.0,1.73623845]
[1753245141408,0.02138602,118850.0,118840.0,1.73623845]
[1753245141896,0.50955124,118870.0,118850.0,0.53352038]
[1753245142128,0.51323777,118870.0,118860.0,0.44910353]
[1753245142320,0.50482558,118870.0,118860.0,0.45204353]
[1753245142602,0.50680558,118870.0,118860.0,0.45204353]
[1753245143528,0.50780558,118870.0,118860.0,0.45204353]
[1753245144001,0.50680558,118870.0,118860.0,0.45204353]
[1753245144455,0.21492731,118860.0,118850.0,0.54188]
[1753245144681,0.23720731,118860.0,118850.0,0.67032]
[1753245144950,0.23720731,118860.0,118850.0,0.98890353]
[1753245145393,0.23720731,118860.0,118850.0,1.16043287]
[1753245145627,0.23720731,118860.0,118850.0,1.16884683]
[1753245145628,0.20452035,118860.0,118850.0,1.16884683]
[1753245145842,0.20452035,118860.0,118850.0,0.84055683]
[1753245146055,0.19610731,118860.0,118850.0,0.80071749]
[1753245146272,0.19610731,118860.0,118850.0,0.79230353]
[1753245146482,0.19710731,118860.0,118850.0,0.79230353]
[1753245146814,0.19710731,118860.0,118850.0,0.47372]
[1753245147018,0.19710731,118860.0,118850.0,0.79230353]
[1753245147224,0.19710731,118860.0,118850.0,0.79330353]
[1753245148693,0.19710731,118860.0,118850.0,0.47472]
[1753245148890,0.23770731,118860.0,118850.0,0.341]
[1753245149296,0.23770731,118860.0,118850.0,0.46944]
[1753245149703,0.23770731,118860.0,118850.0,0.341]
[1753245150031,0.94220814,118860.0,118850.0,0.341]
[1753245150243,0.94220814,118860.0,118850.0,0.001]
[1753245150448,0.94220814,118860.0,118850.0,0.12944]
[1753245150636,1.34220814,118860.0,118850.0,0.12944]
[1753245151834,1.34220814,118860.0,118850.0,0.001]
[1753245152060,1.34220814,118860.0,118850.0,0.12944]
[1753245152500,1.66079167,118860.0,118850.0,0.12944]
[1753245152697,1.02362461,118860.0,118850.0,0.12944]
[1753245153073,1.34220814,118860.0,118850.0,0.12944]
[1753245154341,1.04290814,118860.0,118850.0,0.12944]
[1753245154693,0.96149167,118860.0,118850.0,0.001]
[1753245154934,0.96149167,118860.0,118850.0,0.12944]
[1753245155978,0.64290814,118860.0,118850.0,0.12944]
[1753245156579,0.96149167,118860.0,118850.0,0.12944]
[1753245157355,0.96149167,118860.0,118850.0,0.001]
[1753245157573,0.96149167,118860.0,118850.0,0.12944]
[1753245157777,0.98674367,118860.0,118850.0,0.12944]
[1753245168308,1.07122097,118860.0,118850.0,0.001]
[1753245168517,0.98674367,118860.0,118850.0,0.12944]
[1753245169570,0.01683309,118810.0,118800.0,0.003]
[1753245169774,0.96918989,118810.0,118800.0,0.003]
[1753245169984,0.96918989,118810.0,118800.0,0.1314]
[1753245169985,0.96709246,118810.0,118800.0,0.1314]
[1753245170247,0.67377093,118810.0,118800.0,0.1314]
[1753245170659,0.67377093,118810.0,118800.0,0.1324]
[1753245170955,0.6739183,118810.0,118800.0,0.1324]
[1753245171366,0.6739183,118810.0,118800.0,0.1334]
[1753245171601,0.68235248,118810.0,118800.0,0.1334]
[1753245171832,0.70714981,118810.0,118800.0,0.005]
[1753245171977,0.70714981,118810.0,118800.0,0.13344]
[1753245172778,0.70714981,118810.0,118800.0,0.13244]
[1753245173182,0.6720022,118810.0,118800.0,0.13244]
[1753245174449,0.68399256,118810.0,118800.0,0.13244]
[1753245177339,0.76846986,118810.0,118800.0,0.13244]
[1753245177964,0.68399256,118810.0,118800.0,0.004]
[1753245178164,0.68399256,118810.0,118800.0,0.13244]
[1753245179281,0.68399256,118810.0,118800.0,0.13144]
[1753245179601,0.68699256,118810.0,118800.0,0.13244]
[1753245182739,0.68488256,118810.0,118800.0,0.13244]
[1753245182984,0.40144664,118810.0,118800.0,0.13244]
[1753245183195,0.68488256,118810.0,118800.0,0.13244]
[1753245183699,0.66488256,118810.0,118800.0,0.13244]
[1753245184300,0.30958144,118810.0,118800.0,0.46147592]
[1753245184506,0.00314737,118810.0,118800.0,0.99507767]
[1753245184931,0.00841559,118820.0,118810.0,0.57278573]
[1753245185137,0.00841559,118820.0,118810.0,0.86993795]
[1753245185399,0.48443821,118830.0,118820.0,0.21593785]
[1753245185617,0.58636453,118830.0,118820.0,0.63836964]
[1753245185842,0.57794936,118830.0,118820.0,0.63311377]
[1753245186282,0.46760766,118830.0,118820.0,0.98152957]
[1753245186573,0.3077151,118830.0,118820.0,0.98994516]
[1753245186879,0.49347178,118830.0,118820.0,0.99094523]
[1753245186983,0.49447178,118830.0,118820.0,0.99194523]
[1753245187227,0.49447178,118830.0,118820.0,0.98352957]
[1753245190980,0.49447178,118830.0,118820.0,0.9919453]
[1753245191485,0.49447178,118830.0,118820.0,0.84667377]
[1753245191704,0.49447178,118830.0,118820.0,0.98348964]
[1753245192390,0.48605668,118830.0,118820.0,0.84667377]
[1753245192592,0.48605668,118830.0,118820.0,0.98348971]
[1753245192790,0.48605668,118830.0,118820.0,0.99190551]
[1753245193922,0.48605668,118830.0,118820.0,0.96665775]
[1753245194139,0.48605668,118830.0,118820.0,0.97507384]
[1753245194415,0.48605668,118830.0,118820.0,0.3865]
[1753245194593,0.48605668,118830.0,118820.0,0.5149]
[1753245194849,0.57265398,118830.0,118820.0,0.34414]
[1753245195029,0.57265398,118830.0,118820.0,0.47254]
[1753245195229,0.57570398,118830.0,118820.0,0.4704]
[1753245196190,0.57570398,118830.0,118820.0,0.342]
[1753245196416,0.57570398,118830.0,118820.0,0.4704]
[1753245196862,0.97570398,118830.0,118820.0,0.4704]
[1753245199801,0.97265398,118830.0,118820.0,0.4704]
[1753245201510,0.97265398,118830.0,118820.0,0.47254]
[1753245202394,0.57265398,118830.0,118820.0,0.47254]
[1753245202606,0.57265398,118830.0,118820.0,0.4973]
[1753245205766,0.57265398,118830.0,118820.0,0.49726]
[1753245205996,0.57265398,118830.0,118820.0,0.3689]
[1753245206224,0.57265398,118830.0,118820.0,0.4941]
[1753245206439,0.97265398,118830.0,118820.0,0.4941]
[1753245207481,0.97265398,118830.0,118820.0,0.36877]
[1753245207687,0.57053398,118830.0,118820.0,0.51583]
[1753245211893,0.32616433,118830.0,118820.0,0.97600384]
[1753245212055,0.51971678,118830.0,118820.0,0.99283551]
[1753245212250,0.51971678,118830.0,118820.0,1.00125124]
[1753245212457,0.51971678,118830.0,118820.0,1.0096669]
[1753245212862,0.34299381,118830.0,118820.0,1.0096664]
[1753245213066,0.31712969,118830.0,118820.0,1.0096664]
[1753245213275,0.32554479,118830.0,118820.0,1.0096664]
[1753245213615,0.01782969,118830.0,118820.0,1.0096664]
[1753245213803,0.02624479,118830.0,118820.0,1.0096664]
[1753245214696,0.01782969,118830.0,118820.0,1.0096664]
[1753245214936,0.02624486,118830.0,118820.0,1.0096664]
[1753245215558,0.02624479,118830.0,118820.0,1.0096664]
[1753245216484,0.001,118830.0,118820.0,1.0096664]
[1753245217711,0.001,118830.0,118820.0,1.0086664]
[1753245217911,0.00841403,118840.0,118830.0,0.57475295]
[1753245218127,0.00841403,118840.0,118830.0,0.99168887]
[1753245218330,0.22238446,118850.0,118840.0,0.23473688]
[1753245218530,0.22238446,118850.0,118840.0,0.66008697]
[1753245219588,0.22250868,118850.0,118840.0,0.66008697]
[1753245220020,0.22250868,118850.0,118840.0,0.66108697]
[1753245221030,0.22250772,118850.0,118840.0,1.00208697]
[1753245221228,0.22250772,118850.0,118840.0,1.01066347]
[1753245221450,0.23092168,118850.0,118840.0,1.01066347]
[1753245221681,0.23092168,118850.0,118840.0,1.00208697]
[1753245221884,0.222508,118850.0,118840.0,0.9936728]
[1753245222450,0.21409425,118850.0,118840.0,0.98525855]
[1753245222650,0.21409425,118850.0,118840.0,0.99367294]
[1753245225577,0.03740095,118850.0,118840.0,1.00208711]
[1753245225775,0.03740025,118850.0,118840.0,1.0103025]
[1753245225995,0.045814,118850.0,118840.0,1.0103025]
[1753245226184,0.045814,118850.0,118840.0,0.8819825]
[1753245226383,0.045814,118850.0,118840.0,1.0103025]
[1753245226891,0.05422782,118850.0,118840.0,1.0103025]
[1753245227824,0.00312422,118850.0,118840.0,0.72686658]
[1753245227986,0.01153769,118850.0,118840.0,1.0103025]
[1753245230620,0.01995123,118850.0,118840.0,1.0103025]
[1753245232208,0.01153769,118850.0,118840.0,1.0103025]
[1753245232665,0.01153762,118850.0,118840.0,1.0103025]
[1753245233951,0.01995116,118850.0,118840.0,1.0103025]
[1753245235118,0.02836484,118850.0,118840.0,1.0103025]
[1753245235949,0.02836477,118850.0,118840.0,1.0103025]
[1753245236159,0.03677845,118850.0,118840.0,1.0103025]
[1753245237074,0.03677845,118850.0,118840.0,0.8819825]
[1753245237283,0.03677845,118850.0,118840.0,1.0102625]
[1753245237698,0.03677845,118850.0,118840.0,0.8819825]
[1753245237953,0.2134721,118850.0,118840.0,0.98501948]
[1753245238148,0.21347252,118850.0,118840.0,1.00184833]
[1753245238448,0.20765043,118850.0,118840.0,0.47239]
[1753245238650,0.21076043,118850.0,118840.0,0.47028]
[1753245239082,0.21076043,118850.0,118840.0,0.6385735]
[1753245239303,0.20765043,118850.0,118840.0,0.64698817]
[1753245239515,0.21606411,118850.0,118840.0,0.68583683]
[1753245239756,0.21409411,118850.0,118840.0,0.71475108]
[1753245241521,0.21409411,118850.0,118840.0,0.70633683]
[1753245242079,0.21409411,118850.0,118840.0,0.69792265]
[1753245242471,0.21606411,118850.0,118840.0,0.69792265]
[1753245242774,0.21606411,118850.0,118840.0,0.6893873]
[1753245242998,0.25076043,118850.0,118840.0,0.47028]
[1753245243216,0.61867365,118850.0,118840.0,0.47028]
[1753245244029,0.33523773,118850.0,118840.0,0.47028]
[1753245246748,0.61867365,118850.0,118840.0,0.47028]
[1753245247253,0.33523773,118850.0,118840.0,0.47028]
[1753245247460,0.33523773,118850.0,118840.0,0.4678]
[1753245247898,0.73523773,118850.0,118840.0,0.4678]
[1753245248786,0.73523773,118850.0,118840.0,0.33952]
[1753245249041,0.73523773,118850.0,118840.0,0.4678]
[1753245254096,0.71513773,118850.0,118840.0,0.4678]
[1753245255001,1.01443773,118850.0,118840.0,0.33952]
[1753245255219,1.01443773,118850.0,118840.0,0.46776]
[1753245256638,0.99453773,118850.0,118840.0,0.46776]
[1753245257762,1.03693773,118850.0,118840.0,0.46776]
[1753245266807,1.01593773,118850.0,118840.0,0.46776]
[1753245267023,1.03613773,118850.0,118840.0,0.46776]
[1753245267232,1.31957365,118850.0,118840.0,0.12924]
[1753245267630,1.31957365,118850.0,118840.0,0.001]
[1753245267804,1.31957365,118850.0,118840.0,0.12924]
[1753245272711,1.02027365,118850.0,118840.0,0.12924]
[1753245273131,1.08027365,118850.0,118840.0,0.12924]
[1753245275922,0.68027365,118850.0,118840.0,0.12924]
[1753245278550,0.76475095,118850.0,118840.0,0.12924]
[1753245279693,0.76575095,118850.0,118840.0,0.12924]
[1753245279998,0.68127365,118850.0,118840.0,0.12924]
[1753245280179,0.68127365,118850.0,118840.0,0.1292]
[1753245280617,0.39783773,118850.0,118840.0,0.1292]
[1753245280826,0.68127365,118850.0,118840.0,0.1292]
[1753245281439,0.68027365,118850.0,118840.0,0.1282]
[1753245281569,0.68027365,118850.0,118840.0,0.1292]
[1753245281789,0.68427365,118850.0,118840.0,0.1292]
[1753245282404,0.40083773,118850.0,118840.0,0.1292]
[1753245282606,0.68427365,118850.0,118840.0,0.1292]
[1753245282860,0.7263083,118850.0,118840.0,0.1292]
[1753245283064,0.7253083,118850.0,118840.0,0.1292]
[1753245284016,0.68327365,118850.0,118840.0,0.1292]
[1753245284375,0.68527365,118850.0,118840.0,0.1292]
[1753245287071,1.08527365,118850.0,118840.0,0.1292]
[1753245288354,1.04367365,118850.0,118840.0,0.1292]
[1753245288571,0.33770871,118850.0,118840.0,0.45903592]
[1753245288776,0.33136772,118850.0,118840.0,0.45903592]
[1753245288979,0.33136772,118850.0,118840.0,0.1756]
[1753245289378,0.34881674,118850.0,118840.0,0.1756]
[1753245289597,0.33136772,118850.0,118840.0,0.1756]
[1753245289711,0.34881674,118850.0,118840.0,0.1756]
[1753245297517,0.34881674,118850.0,118840.0,0.62732942]
[1753245297666,0.0734134,118850.0,118840.0,0.99257258]
[1753245297869,0.24169274,118850.0,118840.0,0.85595841]
[1753245298105,0.20693399,118850.0,118840.0,0.99253273]
[1753245298459,0.19852059,118850.0,118840.0,0.98411841]
[1753245298648,0.19652059,118850.0,118840.0,0.98411841]
[1753245299065,0.19352059,118850.0,118840.0,0.98311841]
[1753245299881,0.19352059,118850.0,118840.0,0.99353273]
[1753245300079,0.19352059,118850.0,118840.0,0.99553273]
[1753245301025,0.19352059,118850.0,118840.0,0.98711841]
[1753245302271,0.19352059,118850.0,118840.0,0.85895841]
[1753245302494,0.19352059,118850.0,118840.0,0.98707841]
[1753245304306,0.02524125,118850.0,118840.0,0.99549266]
[1753245304523,0.01682729,118850.0,118840.0,1.00390683]
[1753245305611,0.02524111,118850.0,118840.0,0.92235091]
[1753245305828,0.02524111,118850.0,118840.0,1.20578683]
[1753245306267,0.01682729,118850.0,118840.0,1.20578683]
[1753245306871,0.02524111,118850.0,118840.0,1.20578683]
[1753245307288,0.01682687,118850.0,118840.0,1.24075821]
[1753245307496,0.02524055,118850.0,118840.0,1.24075821]
[1753245307906,0.01682687,118850.0,118840.0,1.24075821]
[1753245308112,0.02524055,118850.0,118840.0,1.24075821]
[1753245308542,0.2103476,118850.0,118840.0,1.24075821]
[1753245308747,0.0336543,118850.0,118840.0,1.24075821]